[Event "Titled Tuesday Blitz May 11 2021"]
[White "Sevian, Samuel"]
[Black "Belous, Vladimir"]
[WhiteFideId "2040506"]
[BlackFideId "4174003"]
[WhiteElo "2987"]
[BlackElo "2583"]
[Result "1-0"]
[Round "05"]
[TimeControl "180+1"]
[Date "2021.05.11"]
[WhiteClock "0:01:40"]
[BlackClock "0:00:43"]

1. e4 {[%clk 0:03:00]}  c5 {[%clk 0:02:59]} 2. Nf3 {[%clk 0:02:59]}  Nc6 {[%clk 0:02:59]} 3. Nc3 {[%clk 0:03:00]}  g6 {[%clk 0:02:58]} 4. d4 {[%clk 0:02:59]}  cxd4 {[%clk 0:02:58]} 5. Nxd4 {[%clk 0:03:00]}  Bg7 {[%clk 0:02:58]} 6. Be3 {[%clk 0:02:59]}  Nf6 {[%clk 0:02:59]} 7. Nxc6 {[%clk 0:02:59]}  bxc6 {[%clk 0:02:58]} 8. e5 {[%clk 0:02:59]}  Ng8 {[%clk 0:02:58]} 9. Bd4 {[%clk 0:02:59]}  Qc7 {[%clk 0:02:58]} 10. Qe2 {[%clk 0:02:57]}  Nh6 {[%clk 0:02:53]} 11. f4 {[%clk 0:02:53]}  Nf5 {[%clk 0:02:46]} 12. Bf2 {[%clk 0:02:53]}  h5 {[%clk 0:02:47]} 13. O-O-O {[%clk 0:02:52]}  d6 {[%clk 0:02:41]} 14. exd6 {[%clk 0:02:51]}  Nxd6 {[%clk 0:02:42]} 15. Bd4 {[%clk 0:02:47]}  Bg4 {[%clk 0:02:36]} 16. Qe1 {[%clk 0:02:46]}  Bxd1 {[%clk 0:02:12]} 17. Bxg7 {[%clk 0:02:45]}  Rg8 {[%clk 0:02:11]} 18. Be5 {[%clk 0:02:45]}  Bg4 {[%clk 0:02:11]} 19. Ne4 {[%clk 0:02:33]}  O-O-O {[%clk 0:01:57]} 20. Nc5 {[%clk 0:02:15]}  Qb6 {[%clk 0:01:35]} 21. h3 {[%clk 0:02:03]}  Bf5 {[%clk 0:01:16]} 22. Na4 {[%clk 0:01:59]}  Qb7 {[%clk 0:01:03]} 23. Qa5 {[%clk 0:01:58]}  Nb5 {[%clk 0:00:55]} 24. Bxb5 {[%clk 0:01:41]}  cxb5 {[%clk 0:00:45]} 25. Qc3+ {[%clk 0:01:41]}  Kd7 {[%clk 0:00:43]} 26. Nc5+ {[%clk 0:01:40]} 1-0


[Site "https://www.chess.com"]

[Event "Titled Tuesday Blitz May 11 2021"]
[White "Shipov, Sergei"]
[Black "Yoo, Christopher Woojin"]
[WhiteFideId "4113624"]
[BlackFideId "30909694"]
[WhiteElo "2761"]
[BlackElo "2009"]
[Result "0-1"]
[Round "05"]
[TimeControl "180+1"]
[Date "2021.05.11"]
[WhiteClock "0:00:01"]
[BlackClock "0:00:03"]

1. d4 {[%clk 0:03:00]}  Nf6 {[%clk 0:02:58]} 2. c4 {[%clk 0:03:00]}  e6 {[%clk 0:02:56]} 3. Nc3 {[%clk 0:02:59]}  Bb4 {[%clk 0:02:55]} 4. e3 {[%clk 0:02:59]}  c5 {[%clk 0:02:50]} 5. Ne2 {[%clk 0:02:58]}  d6 {[%clk 0:02:49]} 6. a3 {[%clk 0:02:58]}  Ba5 {[%clk 0:02:49]} 7. Bd2 {[%clk 0:02:45]}  O-O {[%clk 0:02:45]} 8. Ng3 {[%clk 0:02:41]}  cxd4 {[%clk 0:02:37]} 9. exd4 {[%clk 0:02:41]}  Nc6 {[%clk 0:02:37]} 10. b4 {[%clk 0:02:34]}  Bb6 {[%clk 0:02:35]} 11. c5 {[%clk 0:02:34]}  dxc5 {[%clk 0:02:35]} 12. dxc5 {[%clk 0:02:34]}  Bc7 {[%clk 0:02:35]} 13. Be2 {[%clk 0:02:15]}  Nd4 {[%clk 0:02:21]} 14. O-O {[%clk 0:02:14]}  Nb3 {[%clk 0:02:17]} 15. Qxb3 {[%clk 0:02:11]}  Qxd2 {[%clk 0:02:16]} 16. Rad1 {[%clk 0:02:08]}  Qf4 {[%clk 0:02:01]} 17. Nb5 {[%clk 0:02:03]}  Be5 {[%clk 0:02:00]} 18. Bf3 {[%clk 0:01:59]}  Bd7 {[%clk 0:01:37]} 19. Nd6 {[%clk 0:01:56]}  Bc6 {[%clk 0:01:37]} 20. Nxb7 {[%clk 0:01:50]}  Ne4 {[%clk 0:01:12]} 21. Na5 {[%clk 0:01:42]}  Nd2 {[%clk 0:01:11]} 22. Rxd2 {[%clk 0:01:32]}  Bxf3 {[%clk 0:01:11]} 23. Qe3 {[%clk 0:01:23]}  Bd5 {[%clk 0:01:07]} 24. Qxf4 {[%clk 0:01:18]}  Bxf4 {[%clk 0:01:08]} 25. Rd3 {[%clk 0:01:18]}  Bc7 {[%clk 0:01:06]} 26. Rxd5 {[%clk 0:01:05]}  exd5 {[%clk 0:01:04]} 27. Nc6 {[%clk 0:01:05]}  Rfe8 {[%clk 0:01:01]} 28. Rd1 {[%clk 0:01:05]}  Re6 {[%clk 0:00:59]} 29. Nd4 {[%clk 0:01:03]}  Ree8 {[%clk 0:00:51]} 30. Nb5 {[%clk 0:01:03]}  Bf4 {[%clk 0:00:45]} 31. Kf1 {[%clk 0:00:59]}  a5 {[%clk 0:00:41]} 32. Ne2 {[%clk 0:00:59]}  Be5 {[%clk 0:00:30]} 33. f4 {[%clk 0:00:57]}  Bb8 {[%clk 0:00:13]} 34. Rxd5 {[%clk 0:00:51]}  axb4 {[%clk 0:00:12]} 35. axb4 {[%clk 0:00:52]}  Ra1+ {[%clk 0:00:12]} 36. Kf2 {[%clk 0:00:51]}  Ra2 {[%clk 0:00:13]} 37. Nc3 {[%clk 0:00:52]}  Rb2 {[%clk 0:00:09]} 38. Rd4 {[%clk 0:00:52]}  g5 {[%clk 0:00:07]} 39. fxg5 {[%clk 0:00:33]}  Be5 {[%clk 0:00:04]} 40. Re4 {[%clk 0:00:33]}  Kf8 {[%clk 0:00:03]} 41. Kf3 {[%clk 0:00:16]}  Rb3 {[%clk 0:00:01]} 42. Rc4 {[%clk 0:00:11]}  Rb8 {[%clk 0:00:01]} 43. Ke4 {[%clk 0:00:09]}  Bxc3 {[%clk 0:00:01]} 44. Nxc3 {[%clk 0:00:08]}  R8xb4 {[%clk 0:00:02]} 45. Kd5 {[%clk 0:00:07]}  Rxc4 {[%clk 0:00:02]} 46. Kxc4 {[%clk 0:00:08]}  Rb2 {[%clk 0:00:02]} 47. g3 {[%clk 0:00:02]}  Ke7 {[%clk 0:00:03]} 48. Nd5+ {[%clk 0:00:02]}  Kd7 {[%clk 0:00:03]} 49. Nf6+ {[%clk 0:00:02]}  Kc6 {[%clk 0:00:04]} 50. h4 {[%clk 0:00:02]}  Rg2 {[%clk 0:00:04]} 51. g4 {[%clk 0:00:01]}  Rc2+ {[%clk 0:00:03]} 52. Kd4 {[%clk 0:00:01]}  Rd2+ {[%clk 0:00:02]} 53. Ke5 {[%clk 0:00:01]}  Re2+ {[%clk 0:00:03]} 54. Kf4 {[%clk 0:00:01]}  Kxc5 {[%clk 0:00:03]} 0-1


[Site "https://www.chess.com"]

[Event "Titled Tuesday Blitz May 11 2021"]
[White "Tari, Aryan"]
[Black "Kobalia, Mikhail"]
[WhiteFideId "1510045"]
[BlackFideId "4119150"]
[WhiteElo "2656"]
[BlackElo "2569"]
[Result "1/2-1/2"]
[Round "05"]
[TimeControl "180+1"]
[Date "2021.05.11"]
[WhiteClock "0:00:09"]
[BlackClock "0:00:10"]

1. e4 {[%clk 0:03:00]}  e5 {[%clk 0:02:58]} 2. Nf3 {[%clk 0:02:59]}  Nc6 {[%clk 0:02:58]} 3. Bb5 {[%clk 0:02:57]}  Nf6 {[%clk 0:02:58]} 4. d4 {[%clk 0:02:48]}  exd4 {[%clk 0:02:52]} 5. e5 {[%clk 0:02:48]}  Ne4 {[%clk 0:02:52]} 6. O-O {[%clk 0:02:47]}  d5 {[%clk 0:02:52]} 7. Nxd4 {[%clk 0:02:45]}  Bd7 {[%clk 0:02:51]} 8. Bxc6 {[%clk 0:02:44]}  bxc6 {[%clk 0:02:50]} 9. f3 {[%clk 0:02:40]}  Nc5 {[%clk 0:02:50]} 10. Be3 {[%clk 0:02:39]}  Ne6 {[%clk 0:02:50]} 11. f4 {[%clk 0:02:22]}  Nxd4 {[%clk 0:02:48]} 12. Qxd4 {[%clk 0:02:17]}  Bf5 {[%clk 0:02:47]} 13. Qc3 {[%clk 0:02:11]}  Qd7 {[%clk 0:02:41]} 14. Nd2 {[%clk 0:02:08]}  Be7 {[%clk 0:02:35]} 15. Nb3 {[%clk 0:02:08]}  O-O {[%clk 0:02:34]} 16. Bc5 {[%clk 0:02:04]}  Bxc5+ {[%clk 0:02:29]} 17. Qxc5 {[%clk 0:02:02]}  Rab8 {[%clk 0:02:20]} 18. Rf2 {[%clk 0:01:37]}  Rb5 {[%clk 0:02:18]} 19. Qxa7 {[%clk 0:01:37]}  Rfb8 {[%clk 0:01:45]} 20. Qe3 {[%clk 0:01:32]}  c5 {[%clk 0:01:32]} 21. a4 {[%clk 0:00:49]}  d4 {[%clk 0:01:27]} 22. Qd2 {[%clk 0:00:50]}  Rb4 {[%clk 0:01:24]} 23. Nxc5 {[%clk 0:00:50]}  Qc6 {[%clk 0:01:15]} 24. Nd3 {[%clk 0:00:38]}  Bxd3 {[%clk 0:01:14]} 25. Qxd3 {[%clk 0:00:39]}  Rxb2 {[%clk 0:01:12]} 26. a5 {[%clk 0:00:24]}  Qd5 {[%clk 0:01:10]} 27. c4 {[%clk 0:00:20]}  Qd7 {[%clk 0:00:52]} 28. Rxb2 {[%clk 0:00:18]}  Rxb2 {[%clk 0:00:52]} 29. a6 {[%clk 0:00:19]}  Rb8 {[%clk 0:00:25]} 30. a7 {[%clk 0:00:18]}  Ra8 {[%clk 0:00:24]} 31. Qb3 {[%clk 0:00:11]}  Qd8 {[%clk 0:00:22]} 32. Qb7 {[%clk 0:00:07]}  d3 {[%clk 0:00:20]} 33. Kf1 {[%clk 0:00:07]}  g5 {[%clk 0:00:17]} 34. Rb1 {[%clk 0:00:06]}  Kg7 {[%clk 0:00:15]} 35. f5 {[%clk 0:00:06]}  d2 {[%clk 0:00:13]} 36. Ke2 {[%clk 0:00:05]}  Qd4 {[%clk 0:00:11]} 37. f6+ {[%clk 0:00:04]}  Kh6 {[%clk 0:00:10]} 38. Qxa8 {[%clk 0:00:03]}  Qxe5+ {[%clk 0:00:10]} 39. Kxd2 {[%clk 0:00:04]}  Qd4+ {[%clk 0:00:10]} 40. Ke2 {[%clk 0:00:02]}  Qxc4+ {[%clk 0:00:09]} 41. Kf2 {[%clk 0:00:01]}  Qd4+ {[%clk 0:00:09]} 42. Kf3 {[%clk 0:00:01]}  Qd3+ {[%clk 0:00:08]} 43. Kf2 {[%clk 0:00:02]}  Qd4+ {[%clk 0:00:07]} 44. Ke2 {[%clk 0:00:02]}  Qc4+ {[%clk 0:00:07]} 45. Kd2 {[%clk 0:00:02]}  Qd4+ {[%clk 0:00:06]} 46. Kc2 {[%clk 0:00:03]}  Qc4+ {[%clk 0:00:07]} 47. Kb2 {[%clk 0:00:04]}  Qb4+ {[%clk 0:00:07]} 48. Ka2 {[%clk 0:00:04]}  Qa4+ {[%clk 0:00:07]} 49. Kb2 {[%clk 0:00:05]}  Qb4+ {[%clk 0:00:08]} 50. Kc1 {[%clk 0:00:05]}  Qc3+ {[%clk 0:00:07]} 51. Kd1 {[%clk 0:00:06]}  Qd3+ {[%clk 0:00:08]} 52. Kc1 {[%clk 0:00:06]}  Qc3+ {[%clk 0:00:08]} 53. Kd1 {[%clk 0:00:07]}  Qd3+ {[%clk 0:00:08]} 54. Ke1 {[%clk 0:00:07]}  Qxb1+ {[%clk 0:00:08]} 55. Ke2 {[%clk 0:00:08]}  Qc2+ {[%clk 0:00:08]} 56. Ke3 {[%clk 0:00:09]}  Qc3+ {[%clk 0:00:08]} 57. Ke4 {[%clk 0:00:09]}  Qc4+ {[%clk 0:00:08]} 58. Ke3 {[%clk 0:00:08]}  Qc3+ {[%clk 0:00:08]} 59. Kf2 {[%clk 0:00:09]}  Qd2+ {[%clk 0:00:08]} 60. Kf1 {[%clk 0:00:08]}  Qd1+ {[%clk 0:00:08]} 61. Kf2 {[%clk 0:00:08]}  Qd2+ {[%clk 0:00:09]} 62. Kf1 {[%clk 0:00:08]}  Qd1+ {[%clk 0:00:09]} 63. Kf2 {[%clk 0:00:09]}  Qd2+ {[%clk 0:00:10]} 1/2-1/2


[Site "https://www.chess.com"]

[Event "Titled Tuesday Blitz May 11 2021"]
[White "Yuan, Qingyu"]
[Black "Jacobson, Brandon"]
[WhiteFideId "8609772"]
[BlackFideId "30901561"]
[WhiteElo "2359"]
[BlackElo "2362"]
[Result "1/2-1/2"]
[Round "05"]
[TimeControl "180+1"]
[Date "2021.05.11"]
[WhiteClock "0:00:04"]
[BlackClock "0:00:02"]

1. e4 {[%clk 0:03:00]}  c5 {[%clk 0:02:57]} 2. Nf3 {[%clk 0:03:00]}  Nc6 {[%clk 0:02:56]} 3. Bb5 {[%clk 0:03:00]}  e6 {[%clk 0:02:56]} 4. O-O {[%clk 0:02:58]}  Nge7 {[%clk 0:02:55]} 5. d4 {[%clk 0:02:59]}  cxd4 {[%clk 0:02:50]} 6. Nxd4 {[%clk 0:03:00]}  Ng6 {[%clk 0:02:50]} 7. Nxc6 {[%clk 0:02:48]}  bxc6 {[%clk 0:02:51]} 8. Be2 {[%clk 0:02:48]}  d5 {[%clk 0:02:50]} 9. exd5 {[%clk 0:02:44]}  cxd5 {[%clk 0:02:51]} 10. c4 {[%clk 0:02:44]}  dxc4 {[%clk 0:02:23]} 11. Qxd8+ {[%clk 0:02:41]}  Kxd8 {[%clk 0:02:24]} 12. Bxc4 {[%clk 0:02:37]}  Bd6 {[%clk 0:02:18]} 13. Rd1 {[%clk 0:02:32]}  Ke7 {[%clk 0:02:17]} 14. Nc3 {[%clk 0:02:31]}  Bb7 {[%clk 0:02:07]} 15. Be3 {[%clk 0:02:26]}  a6 {[%clk 0:02:04]} 16. Rd2 {[%clk 0:02:13]}  Rac8 {[%clk 0:01:59]} 17. Bf1 {[%clk 0:02:08]}  Rhd8 {[%clk 0:01:50]} 18. Rad1 {[%clk 0:02:07]}  Be5 {[%clk 0:01:35]} 19. Na4 {[%clk 0:01:45]}  Rxd2 {[%clk 0:01:03]} 20. Rxd2 {[%clk 0:01:43]}  Bd6 {[%clk 0:01:03]} 21. b4 {[%clk 0:01:35]}  Bd5 {[%clk 0:00:53]} 22. Nc5 {[%clk 0:01:31]}  a5 {[%clk 0:00:49]} 23. a3 {[%clk 0:01:31]}  axb4 {[%clk 0:00:49]} 24. axb4 {[%clk 0:01:31]}  Ne5 {[%clk 0:00:43]} 25. Rc2 {[%clk 0:01:07]}  Nc6 {[%clk 0:00:32]} 26. Na6 {[%clk 0:01:02]}  Ra8 {[%clk 0:00:22]} 27. b5 {[%clk 0:01:00]}  Ne5 {[%clk 0:00:18]} 28. b6 {[%clk 0:00:55]}  Bb7 {[%clk 0:00:12]} 29. Nc5 {[%clk 0:00:49]}  Bd5 {[%clk 0:00:12]} 30. Rc1 {[%clk 0:00:48]}  Ra2 {[%clk 0:00:05]} 31. Rb1 {[%clk 0:00:45]}  Ra8 {[%clk 0:00:03]} 32. b7 {[%clk 0:00:36]}  Rb8 {[%clk 0:00:03]} 33. Ba6 {[%clk 0:00:37]}  Bxc5 {[%clk 0:00:02]} 34. Bxc5+ {[%clk 0:00:37]}  Kd7 {[%clk 0:00:03]} 35. Ba7 {[%clk 0:00:36]}  Kc7 {[%clk 0:00:04]} 36. Rc1+ {[%clk 0:00:36]}  Nc6 {[%clk 0:00:02]} 37. Bxb8+ {[%clk 0:00:35]}  Kxb8 {[%clk 0:00:02]} 38. f3 {[%clk 0:00:30]}  Ka7 {[%clk 0:00:03]} 39. Ra1 {[%clk 0:00:29]}  Nb8 {[%clk 0:00:03]} 40. Bd3+ {[%clk 0:00:21]}  Kxb7 {[%clk 0:00:04]} 41. Bxh7 {[%clk 0:00:21]}  Kc7 {[%clk 0:00:04]} 42. Bd3 {[%clk 0:00:21]}  Kd6 {[%clk 0:00:04]} 43. Kf2 {[%clk 0:00:21]}  Nd7 {[%clk 0:00:04]} 44. Ra7 {[%clk 0:00:19]}  e5 {[%clk 0:00:05]} 45. Ke3 {[%clk 0:00:18]}  Be6 {[%clk 0:00:05]} 46. Bb5 {[%clk 0:00:16]}  Nf6 {[%clk 0:00:04]} 47. Bd3 {[%clk 0:00:15]}  Nd5+ {[%clk 0:00:05]} 48. Kf2 {[%clk 0:00:16]}  Nf4 {[%clk 0:00:03]} 49. Bf1 {[%clk 0:00:16]}  Nd5 {[%clk 0:00:02]} 50. Bc4 {[%clk 0:00:16]}  Nf4 {[%clk 0:00:02]} 51. Bxe6 {[%clk 0:00:16]}  Kxe6 {[%clk 0:00:03]} 52. g3 {[%clk 0:00:15]}  Nd5 {[%clk 0:00:02]} 53. Ra6+ {[%clk 0:00:15]}  Kf5 {[%clk 0:00:03]} 54. Ke2 {[%clk 0:00:15]}  f6 {[%clk 0:00:03]} 55. Ra7 {[%clk 0:00:15]}  Kg6 {[%clk 0:00:03]} 56. h4 {[%clk 0:00:13]}  Nb4 {[%clk 0:00:04]} 57. Kf2 {[%clk 0:00:13]}  Nc6 {[%clk 0:00:04]} 58. Ra6 {[%clk 0:00:13]}  Nd4 {[%clk 0:00:05]} 59. Ke3 {[%clk 0:00:12]}  Nf5+ {[%clk 0:00:06]} 60. Kf2 {[%clk 0:00:13]}  Nd4 {[%clk 0:00:07]} 61. g4 {[%clk 0:00:13]}  Kf7 {[%clk 0:00:05]} 62. Kg3 {[%clk 0:00:13]}  Ne2+ {[%clk 0:00:05]} 63. Kf2 {[%clk 0:00:13]}  Nf4 {[%clk 0:00:06]} 64. Ra7+ {[%clk 0:00:13]}  Kg6 {[%clk 0:00:06]} 65. Kg3 {[%clk 0:00:12]}  Ne2+ {[%clk 0:00:07]} 66. Kg2 {[%clk 0:00:13]}  Nf4+ {[%clk 0:00:08]} 67. Kf2 {[%clk 0:00:13]}  Nd3+ {[%clk 0:00:08]} 68. Ke3 {[%clk 0:00:13]}  Nf4 {[%clk 0:00:09]} 69. Ke4 {[%clk 0:00:12]}  Ne6 {[%clk 0:00:07]} 70. Ra8 {[%clk 0:00:08]}  Nf4 {[%clk 0:00:07]} 71. Rb8 {[%clk 0:00:06]}  Ne6 {[%clk 0:00:07]} 72. Ra8 {[%clk 0:00:06]}  Nf4 {[%clk 0:00:07]} 73. h5+ {[%clk 0:00:06]}  Kh7 {[%clk 0:00:06]} 74. Ra7 {[%clk 0:00:06]}  Kh6 {[%clk 0:00:06]} 75. Kf5 {[%clk 0:00:06]}  Ne2 {[%clk 0:00:06]} 76. Ke6 {[%clk 0:00:05]}  Nd4+ {[%clk 0:00:06]} 77. Kf7 {[%clk 0:00:05]}  Nxf3 {[%clk 0:00:05]} 78. Ra8 {[%clk 0:00:05]}  e4 {[%clk 0:00:03]} 79. Rh8+ {[%clk 0:00:05]}  Kg5 {[%clk 0:00:04]} 80. Kxg7 {[%clk 0:00:06]}  e3 {[%clk 0:00:04]} 81. Re8 {[%clk 0:00:03]}  Ne5 {[%clk 0:00:04]} 82. h6 {[%clk 0:00:03]}  e2 {[%clk 0:00:04]} 83. h7 {[%clk 0:00:04]}  e1=Q {[%clk 0:00:04]} 84. h8=Q {[%clk 0:00:04]}  Kxg4 {[%clk 0:00:04]} 85. Qh6 {[%clk 0:00:03]}  Qg3 {[%clk 0:00:03]} 86. Qxf6 {[%clk 0:00:02]}  Kh5+ {[%clk 0:00:03]} 87. Kh7 {[%clk 0:00:03]}  Qd3+ {[%clk 0:00:03]} 88. Kh8 {[%clk 0:00:02]}  Ng6+ {[%clk 0:00:02]} 89. Kg7 {[%clk 0:00:03]}  Qd7+ {[%clk 0:00:03]} 90. Qf7 {[%clk 0:00:03]}  Qd4+ {[%clk 0:00:03]} 91. Qf6 {[%clk 0:00:04]}  Qd7+ {[%clk 0:00:03]} 92. Qf7 {[%clk 0:00:04]}  Qd4+ {[%clk 0:00:04]} 93. Kh7 {[%clk 0:00:05]}  Qd3 {[%clk 0:00:02]} 94. Kg7 {[%clk 0:00:04]}  Qd4+ {[%clk 0:00:02]} 1/2-1/2


[Site "https://www.chess.com"]

[Event "Titled Tuesday Blitz May 11 2021"]
[White "Zhigalko, Sergei"]
[Black "Arabidze, Meri"]
[WhiteFideId "13502956"]
[BlackFideId "13604040"]
[WhiteElo "2662"]
[BlackElo "2432"]
[Result "1-0"]
[Round "05"]
[TimeControl "180+1"]
[Date "2021.05.11"]
[WhiteClock "0:00:05"]
[BlackClock "0:00:14"]

1. e4 {[%clk 0:03:00]}  c5 {[%clk 0:02:56]} 2. Nf3 {[%clk 0:02:59]}  e6 {[%clk 0:02:57]} 3. c3 {[%clk 0:02:59]}  d5 {[%clk 0:02:56]} 4. e5 {[%clk 0:03:00]}  Nc6 {[%clk 0:02:55]} 5. d4 {[%clk 0:03:00]}  Nge7 {[%clk 0:02:53]} 6. Na3 {[%clk 0:03:00]}  Nf5 {[%clk 0:02:52]} 7. Nc2 {[%clk 0:03:00]}  h5 {[%clk 0:02:48]} 8. Bd3 {[%clk 0:02:59]}  g6 {[%clk 0:02:48]} 9. O-O {[%clk 0:02:57]}  Be7 {[%clk 0:02:48]} 10. dxc5 {[%clk 0:02:57]}  Bxc5 {[%clk 0:02:47]} 11. Bg5 {[%clk 0:02:54]}  Be7 {[%clk 0:02:46]} 12. Bxe7 {[%clk 0:02:53]}  Ncxe7 {[%clk 0:02:47]} 13. Qd2 {[%clk 0:02:49]}  Bd7 {[%clk 0:02:44]} 14. Rfe1 {[%clk 0:02:45]}  Qc7 {[%clk 0:02:44]} 15. Bxf5 {[%clk 0:02:36]}  Nxf5 {[%clk 0:02:43]} 16. Ncd4 {[%clk 0:02:35]}  O-O-O {[%clk 0:02:40]} 17. h4 {[%clk 0:02:30]}  Kb8 {[%clk 0:02:39]} 18. Qg5 {[%clk 0:02:24]}  Nh6 {[%clk 0:02:30]} 19. Rad1 {[%clk 0:02:20]}  Ng4 {[%clk 0:02:29]} 20. Rd2 {[%clk 0:02:16]}  Rc8 {[%clk 0:02:19]} 21. Qf4 {[%clk 0:02:03]}  f6 {[%clk 0:02:01]} 22. Qg3 {[%clk 0:02:01]}  g5 {[%clk 0:01:52]} 23. hxg5 {[%clk 0:01:32]}  fxg5 {[%clk 0:01:45]} 24. Nxg5 {[%clk 0:01:31]}  Rcg8 {[%clk 0:01:41]} 25. Ngxe6 {[%clk 0:01:08]}  Bxe6 {[%clk 0:01:32]} 26. Nxe6 {[%clk 0:01:08]}  Qe7 {[%clk 0:01:23]} 27. Nd4 {[%clk 0:00:35]}  h4 {[%clk 0:01:23]} 28. Qh3 {[%clk 0:00:34]}  Qg5 {[%clk 0:01:17]} 29. Nf3 {[%clk 0:00:32]}  Qf4 {[%clk 0:00:54]} 30. Rd4 {[%clk 0:00:25]}  Qf5 {[%clk 0:00:45]} 31. e6 {[%clk 0:00:20]}  Qg6 {[%clk 0:00:34]} 32. e7 {[%clk 0:00:16]}  Nf6 {[%clk 0:00:34]} 33. Rxh4 {[%clk 0:00:11]}  Rxh4 {[%clk 0:00:30]} 34. Nxh4 {[%clk 0:00:12]}  Qg5 {[%clk 0:00:26]} 35. Qg3+ {[%clk 0:00:08]}  Qxg3 {[%clk 0:00:25]} 36. fxg3 {[%clk 0:00:09]}  Kc7 {[%clk 0:00:24]} 37. Rf1 {[%clk 0:00:08]}  Nd7 {[%clk 0:00:22]} 38. Nf5 {[%clk 0:00:06]}  Re8 {[%clk 0:00:21]} 39. Re1 {[%clk 0:00:06]}  Nf6 {[%clk 0:00:20]} 40. Ng7 {[%clk 0:00:06]}  Rg8 {[%clk 0:00:20]} 41. e8=Q {[%clk 0:00:07]}  Nxe8 {[%clk 0:00:18]} 42. Nxe8+ {[%clk 0:00:08]}  Kc6 {[%clk 0:00:19]} 43. Nf6 {[%clk 0:00:09]}  Rxg3 {[%clk 0:00:19]} 44. Kf2 {[%clk 0:00:06]}  Rd3 {[%clk 0:00:19]} 45. Re2 {[%clk 0:00:06]}  Rd1 {[%clk 0:00:19]} 46. Ng4 {[%clk 0:00:06]}  b5 {[%clk 0:00:18]} 47. Ne5+ {[%clk 0:00:06]}  Kc5 {[%clk 0:00:18]} 48. Nf3 {[%clk 0:00:06]}  b4 {[%clk 0:00:19]} 49. cxb4+ {[%clk 0:00:06]}  Kxb4 {[%clk 0:00:20]} 50. Rd2 {[%clk 0:00:06]}  Ra1 {[%clk 0:00:19]} 51. a3+ {[%clk 0:00:06]}  Kb3 {[%clk 0:00:19]} 52. g4 {[%clk 0:00:05]}  Rb1 {[%clk 0:00:14]} 53. g5 {[%clk 0:00:06]}  d4 {[%clk 0:00:14]} 54. Nxd4+ {[%clk 0:00:06]}  Ka2 {[%clk 0:00:14]} 55. g6 {[%clk 0:00:05]}  a5 {[%clk 0:00:14]} 56. g7 {[%clk 0:00:05]} 1-0


[Site "https://www.chess.com"]

[Event "Titled Tuesday Blitz May 11 2021"]
[White "Aditya Mittal"]
[Black "Holt, Conrad"]
[WhiteFideId "35042025"]
[BlackFideId "2034387"]
[WhiteElo "2171"]
[BlackElo "2586"]
[Result "0-1"]
[Round "06"]
[TimeControl "180+1"]
[Date "2021.05.11"]
[WhiteClock "0:00:07"]
[BlackClock "0:00:35"]

1. d4 {[%clk 0:03:00]}  d5 {[%clk 0:02:59]} 2. c4 {[%clk 0:03:00]}  c6 {[%clk 0:02:59]} 3. Nc3 {[%clk 0:02:59]}  dxc4 {[%clk 0:02:59]} 4. Nf3 {[%clk 0:02:55]}  Nf6 {[%clk 0:02:58]} 5. a4 {[%clk 0:02:52]}  Bf5 {[%clk 0:02:57]} 6. e3 {[%clk 0:02:52]}  e6 {[%clk 0:02:56]} 7. Bxc4 {[%clk 0:02:53]}  Bb4 {[%clk 0:02:56]} 8. O-O {[%clk 0:02:53]}  O-O {[%clk 0:02:55]} 9. Qe2 {[%clk 0:02:54]}  Nbd7 {[%clk 0:02:55]} 10. e4 {[%clk 0:02:39]}  Bg4 {[%clk 0:02:54]} 11. h3 {[%clk 0:02:37]}  Bxf3 {[%clk 0:02:53]} 12. Qxf3 {[%clk 0:02:33]}  Nb6 {[%clk 0:02:53]} 13. Bb3 {[%clk 0:02:21]}  Qxd4 {[%clk 0:02:52]} 14. Be3 {[%clk 0:02:19]}  Qe5 {[%clk 0:02:50]} 15. Bf4 {[%clk 0:02:07]}  Qa5 {[%clk 0:02:44]} 16. Rfd1 {[%clk 0:02:02]}  Rfd8 {[%clk 0:02:34]} 17. Rxd8+ {[%clk 0:01:47]}  Rxd8 {[%clk 0:02:34]} 18. Rd1 {[%clk 0:01:47]}  Rxd1+ {[%clk 0:02:31]} 19. Qxd1 {[%clk 0:01:48]}  Nfd7 {[%clk 0:02:28]} 20. Bc7 {[%clk 0:01:33]}  Qg5 {[%clk 0:02:14]} 21. Qd4 {[%clk 0:01:10]}  Qc1+ {[%clk 0:01:53]} 22. Kh2 {[%clk 0:01:03]}  Bc5 {[%clk 0:01:50]} 23. Qd1 {[%clk 0:00:51]}  Qxd1 {[%clk 0:01:39]} 24. Nxd1 {[%clk 0:00:50]}  Nc8 {[%clk 0:01:12]} 25. e5 {[%clk 0:00:36]}  Bb6 {[%clk 0:00:59]} 26. Bxb6 {[%clk 0:00:28]}  Ncxb6 {[%clk 0:00:59]} 27. f4 {[%clk 0:00:29]}  Nc5 {[%clk 0:00:58]} 28. Bc2 {[%clk 0:00:28]}  Ncxa4 {[%clk 0:00:56]} 29. b4 {[%clk 0:00:26]}  c5 {[%clk 0:00:55]} 30. b5 {[%clk 0:00:19]}  c4 {[%clk 0:00:51]} 31. Ne3 {[%clk 0:00:20]}  Nb2 {[%clk 0:00:46]} 32. Kg3 {[%clk 0:00:18]}  Nd5 {[%clk 0:00:42]} 33. Kf3 {[%clk 0:00:19]}  Nc3 {[%clk 0:00:39]} 34. f5 {[%clk 0:00:13]}  Nxb5 {[%clk 0:00:38]} 35. fxe6 {[%clk 0:00:12]}  fxe6 {[%clk 0:00:37]} 36. Be4 {[%clk 0:00:11]}  Nd4+ {[%clk 0:00:36]} 37. Kf2 {[%clk 0:00:11]}  b5 {[%clk 0:00:36]} 38. Ke1 {[%clk 0:00:11]}  c3 {[%clk 0:00:35]} 39. Bd3 {[%clk 0:00:07]}  Nxd3+ {[%clk 0:00:35]} 0-1


[Site "https://www.chess.com"]